fUSD/lending_fUSD_20241209
["ID","MTS","AMOUNT","RATE_DAILY","PERIOD"]
[344667037,1733713837915,-214.456,9.8e-05,2]
[344667038,1733713837925,-4500.6879,9.9e-05,2]
[344667039,1733713837934,-503.25205257,9.973e-05,2]
[344667040,1733713837944,-150.0,9.998e-05,3]
[344667041,1733713837953,-150.0,9.998e-05,3]
[344667042,1733713837962,-150.0,9.998e-05,3]
[344667043,1733713837971,-150.0,9.998e-05,3]
[344667044,1733713837982,-150.0,9.998e-05,2]
[344667045,1733713837991,-150.0,9.998e-05,2]
[344667046,1733713838001,-206.67811835,9.998e-05,2]
[344667047,1733713838010,-1000.0,9.999e-05,2]
[344667048,1733713838021,-686.15,9.999e-05,2]
[344667049,1733713838030,-150.0,9.999e-05,2]
[344667050,1733713838039,-877.0,0.0001,2]
[344667051,1733713838048,-28259.90233505,0.0001,2]
[344667052,1733713838211,-10075.42310379,0.0001,2]
[344667053,1733713838222,-121519.7695,0.0001,2]
[344667054,1733713838234,-23822.67436494,0.0001,2]
[344667055,1733713838247,-147895.71100521,0.0001,2]
[344667060,1733713839764,-568.5368175,0.0001,2]
[344667061,1733713840154,-7898.0,0.0001,2]
[344667063,1733713840166,-504.0313475,0.0001,2]
[344667064,1733713840177,-4602.16975072,0.0001,2]
[344667065,1733713840189,-3479.91,0.0001,2]
[344667070,1733713843067,-18920.439,9.9e-05,2]
[344667071,1733713843077,-125485.54434247,0.0001,2]
[344667072,1733713843088,-1486.30167,0.0001,2]
[344667073,1733713843100,-5943.31739567,0.0001,2]
[344667081,1733714481409,58855.55960328,0.0002,120]
[344667082,1733714481442,14941144.44039672,0.0002,120]
[344667083,1733714645432,3845.0,5.812e-05,2]
[344667084,1733714666366,-678.58,7.7e-05,2]
[344667094,1733714946180,3040.0,5.812e-05,2]
[344667155,1733715032057,-300.0,7.699e-05,2]
[344667156,1733715032066,-200.0,7.7e-05,2]
[344667157,1733715032078,-590.28466234,7.7e-05,2]
[344667158,1733715032089,-20826.13533766,7.7e-05,2]
[344667159,1733715032099,-938.52,8.219e-05,2]
[344667160,1733715032108,-420.0,8.469e-05,2]
[344667161,1733715032117,-82.21987002,8.499e-05,2]
[344667162,1733715032191,-243.90012998,8.499e-05,2]
[344667163,1733715032200,-150.0,8.763e-05,2]
[344667164,1733715032209,-200.0,8.784e-05,2]
[344667165,1733715032222,-985.77,8.823e-05,2]
[344667166,1733715032232,-809.69354081,8.867e-05,2]
[344667181,1733715037962,-190.30645919,8.867e-05,2]
[344667182,1733715037972,-2990.11,8.971e-05,2]
[344667183,1733715037981,-410.42,9.095e-05,2]
[344667184,1733715037990,-200.0,9.118e-05,2]
[344667185,1733715038000,-270.48780477,9.14e-05,2]
[344667186,1733715038012,-730.69311212,9.14e-05,2]
[344667187,1733715038021,-21352.89646332,9.141e-05,2]
[344667188,1733715038358,-2547.10353668,9.141e-05,2]
[344667189,1733715038368,-150.0,9.163e-05,2]
[344667190,1733715038378,-2543.5,9.164e-05,2]
[344667191,1733715038387,-167.25,9.271e-05,2]
[344667192,1733715038396,-500.0,9.3e-05,3]
[344667193,1733715038410,-587.0,9.316e-05,2]
[344667194,1733715038424,-161.28,9.322e-05,2]
[344667195,1733715038433,-1000.0,9.4e-05,3]
[344667196,1733715038442,-150.0,9.422e-05,2]
[344667197,1733715038451,-428.806,9.5e-05,2]
[344667198,1733715038460,-1600.0,9.5e-05,3]
[344667199,1733715038469,-326.12,9.561e-05,2]
[344667200,1733715038478,-2100.0,9.6e-05,3]
[344667202,1733715038487,-1003.0,9.7e-05,2]
[344667204,1733715038497,-2600.0,9.7e-05,3]
[344667206,1733715038506,-500.0,9.8e-05,3]
[344667208,1733715038515,-273.04905414,9.85e-05,2]
[344667210,1733715038524,-803.408,9.873e-05,2]
[344667212,1733715038533,-1108.39726536,9.899e-05,3]
[344667214,1733715038542,-10003.9272,9.9e-05,2]
[344667216,1733715038551,-133149.7985,9.9e-05,2]
[344667218,1733715038562,-8730.261,9.9e-05,2]
[344667220,1733715038571,-500.0,9.9e-05,3]
[344667222,1733715038580,-500.0,9.947e-05,2]
[344667223,1733715038590,-500.0,9.947e-05,2]
[344667224,1733715038599,-314.53974288,9.947e-05,2]
[344667225,1733715038608,-1283.1,9.947e-05,2]
[344667226,1733715038618,-1557.28,9.947e-05,2]
[344667227,1733715038627,-238.0,9.948e-05,2]
[344667228,1733715038636,-5144.81,9.948e-05,2]
[344667229,1733715038646,-500.0,9.948e-05,2]
[344667230,1733715038655,-614.44,9.948e-05,2]
[344667231,1733715038665,-813.93,9.948e-05,2]
[344667232,1733715038674,-1437.3,9.948e-05,2]
[344667233,1733715038683,-8054.62,9.948e-05,2]
[344667234,1733715038692,-3282.69,9.948e-05,2]
[344667235,1733715038701,-500.0,9.948e-05,2]
[344667236,1733715038710,-500.0,9.948e-05,2]
[344667237,1733715038719,-500.0,9.948e-05,2]
[344667238,1733715038728,-12938.5,9.948e-05,2]
[344667239,1733715038738,-1066.06,9.948e-05,2]
[344667240,1733715038747,-7634.54,9.948e-05,2]
[344667241,1733715038756,-500.84639198,9.948e-05,2]
[344667242,1733715038766,-2261.36,9.948e-05,2]
[344667243,1733715038775,-656.62,9.948e-05,2]
[344667244,1733715038784,-500.0,9.948e-05,2]
[344667245,1733715038794,-1711.0,9.948e-05,2]
[344667246,1733715038807,-585.7,9.948e-05,2]
[344667247,1733715038816,-9897.75,9.948e-05,2]
[344667248,1733715038826,-738.17,9.948e-05,2]
[344667249,1733715038835,-567.08,9.948e-05,2]
[344667250,1733715038845,-1110.41,9.948e-05,2]
[344667251,1733715038855,-1213.4,9.948e-05,2]
[344667252,1733715038864,-608.25,9.948e-05,2]
[344667253,1733715038874,-967.24,9.948e-05,2]
[344667254,1733715038883,-4296.19,9.948e-05,2]
[344667255,1733715038892,-519.6,9.948e-05,2]
[344667256,1733715038902,-713.15,9.948e-05,2]
[344667257,1733715038912,-652.84,9.949e-05,2]
[344667258,1733715038923,-5668.62,9.949e-05,2]
[344667259,1733715038936,-500.0,9.949e-05,2]
[344667260,1733715038946,-1120.57,9.949e-05,2]
[344667261,1733715038958,-1437.89,9.949e-05,2]
[344667262,1733715038972,-176.306491,9.949e-05,2]
[344667263,1733715038983,-1962.716786,9.949e-05,2]
[344667264,1733715038992,-719.71,9.949e-05,2]
[344667265,1733715039001,-6348.11,9.949e-05,2]
[344667266,1733715039011,-1327.4,9.949e-05,2]
[344667267,1733715039020,-174.136838,9.949e-05,2]
[344667268,1733715039029,-198.479897,9.949e-05,2]
[344667269,1733715039039,-6427.48,9.949e-05,2]
[344667270,1733715039049,-160.623099,9.949e-05,2]
[344667271,1733715039060,-500.0,9.949e-05,2]
[344667272,1733715039069,-500.0,9.949e-05,2]
[344667273,1733715039078,-9509.48,9.949e-05,2]
[344667274,1733715039087,-659.67,9.949e-05,2]
[344667275,1733715039096,-520.3,9.949e-05,2]
[344667276,1733715039105,-4994.83,9.949e-05,2]
[344667277,1733715039115,-1108.39726536,9.949e-05,3]
[344667278,1733715039125,-4176.55,9.949e-05,2]
[344667279,1733715039135,-766.52,9.949e-05,2]
[344667280,1733715039146,-3687.01,9.949e-05,2]
[344667281,1733715039155,-3048.73,9.949e-05,2]
[344667282,1733715039167,-8798.37,9.949e-05,2]
[344667283,1733715039176,-156.214755,9.949e-05,2]
[344667284,1733715039187,-11463.56,9.949e-05,2]
[344667285,1733715039198,-500.0,9.949e-05,2]
[344667286,1733715039209,-500.0,9.949e-05,2]
[344667287,1733715039227,-6117.09,9.949e-05,2]
[344667288,1733715039238,-1114.63,9.949e-05,2]
[344667289,1733715039247,-150.291523,9.949e-05,2]
[344667290,1733715039258,-6432.18,9.949e-05,2]
[344667291,1733715039267,-34071.56,9.949e-05,2]
[344667292,1733715039277,-7245.55,9.949e-05,2]
[344667293,1733715039287,-7514.49498343,9.949e-05,2]
[344667294,1733715039300,-8107.48501657,9.949e-05,2]
[344667295,1733715039311,-500.0,9.949e-05,2]
[344667296,1733715039321,-500.0,9.949e-05,2]
[344667297,1733715039330,-697.67,9.949e-05,2]
[344667298,1733715039340,-599.4,9.949e-05,2]
[344667299,1733715039349,-1110.41,9.949e-05,2]
[344667300,1733715039359,-608.25,9.949e-05,2]
[344667301,1733715039368,-482.78358343,9.949e-05,2]
[344667302,1733715039379,-730.61641657,9.949e-05,2]
[344667303,1733715039389,-500.0,9.949e-05,2]
[344667304,1733715039398,-7026.15,9.949e-05,2]
[344667305,1733715039407,-500.0,9.949e-05,2]
[344667306,1733715039417,-519.6,9.949e-05,2]
[344667307,1733715039426,-713.15,9.949e-05,2]
[344667308,1733715039436,-1283.1,9.949e-05,2]
[344667309,1733715039445,-1557.28,9.949e-05,2]
[344667310,1733715039454,-7399.08,9.949e-05,2]
[344667311,1733715039464,-1000.0,9.949e-05,2]
[344667312,1733715039473,-7420.66394127,9.95e-05,2]
[344667313,1733715039485,-7746.36312,9.95e-05,2]
[344667314,1733715039495,-3762.0,9.95e-05,2]
[344667315,1733715039522,-94277.96374601,9.95e-05,2]
[344667316,1733715039534,-38277.99212575,9.95e-05,2]
[344667317,1733715039544,-2359.8464151,9.973e-05,2]
[344667320,1733715039951,-500.0,9.947e-05,2]
[344667321,1733715039964,-500.0,9.949e-05,2]
[344667322,1733715039975,-8107.1535849,9.973e-05,2]
[344667323,1733715039984,-199.88836991,9.973e-05,2]
[344667324,1733715039994,-500.0,9.973e-05,2]
[344667325,1733715040003,-500.0,9.973e-05,2]
[344667326,1733715040013,-600.55706583,9.973e-05,2]
[344667327,1733715040022,-500.0,9.973e-05,2]
[344667328,1733715040032,-501.00572687,9.973e-05,2]
[344667329,1733715040041,-406.19089172,9.973e-05,2]
[344667330,1733715040051,-500.0,9.973e-05,2]
[344667331,1733715040062,-1000.0,9.975e-05,2]
[344667332,1733715040071,-150.0,9.994e-05,2]
[344667333,1733715040081,-150.0,9.994e-05,2]
[344667334,1733715040091,-150.0,9.994e-05,3]
[344667335,1733715040101,-150.0,9.994e-05,3]
[344667336,1733715040110,-5144.81,9.994e-05,2]
[344667337,1733715040120,-500.0,9.994e-05,2]
[344667338,1733715040132,-614.44,9.994e-05,2]
[344667339,1733715040141,-813.93,9.994e-05,2]
[344667340,1733715040150,-1437.3,9.994e-05,2]
[344667341,1733715040161,-150.0,9.994e-05,3]
[344667342,1733715040170,-8054.62,9.994e-05,2]
[344667343,1733715040179,-3282.69,9.994e-05,2]
[344667344,1733715040189,-250.00000001,9.994e-05,3]
[344667345,1733715040200,-500.0,9.994e-05,2]
[344667346,1733715040212,-500.0,9.994e-05,2]
[344667347,1733715040224,-500.0,9.994e-05,2]
[344667348,1733715040233,-12938.5,9.994e-05,2]
[344667349,1733715040242,-638.57232927,9.994e-05,2]
[344667350,1733715040254,-427.48767073,9.994e-05,2]
[344667351,1733715040264,-7634.54,9.994e-05,2]
[344667352,1733715040273,-2261.36,9.994e-05,2]
[344667353,1733715040282,-656.62,9.994e-05,2]
[344667354,1733715040291,-500.0,9.994e-05,2]
[344667355,1733715040303,-1711.0,9.994e-05,2]
[344667356,1733715040317,-585.7,9.994e-05,2]
[344667357,1733715040326,-9897.75,9.994e-05,2]
[344667358,1733715040335,-738.17,9.994e-05,2]
[344667359,1733715040344,-567.08,9.994e-05,2]
[344667360,1733715040353,-967.24,9.994e-05,2]
[344667361,1733715040363,-500.0,9.994e-05,2]
[344667362,1733715040372,-500.0,9.994e-05,2]
[344667363,1733715040382,-4296.19,9.994e-05,2]
[344667364,1733715040392,-500.0,9.994e-05,2]
[344667365,1733715040401,-500.0,9.994e-05,2]
[344667366,1733715040412,-1283.1,9.994e-05,2]
[344667367,1733715040422,-1283.1,9.994e-05,2]
[344667368,1733715040431,-1557.28,9.994e-05,2]
[344667369,1733715040440,-500.0,9.994e-05,2]
[344667370,1733715040450,-1557.28,9.994e-05,2]
[344667371,1733715040459,-652.84,9.995e-05,2]
[344667372,1733715040468,-5668.62,9.995e-05,2]
[344667373,1733715040477,-500.0,9.995e-05,2]
[344667374,1733715040486,-171.1586957,9.995e-05,2]
[344667375,1733715040495,-160.83969946,9.995e-05,2]
[344667376,1733715040504,-500.0,9.995e-05,2]
[344667377,1733715040513,-500.0,9.995e-05,2]
[344667378,1733715040522,-187.97387593,9.995e-05,2]
[344667379,1733715040531,-500.0,9.995e-05,2]
[344667380,1733715040540,-569.28354469,9.995e-05,2]
[344667381,1733715040549,-405.08536357,9.995e-05,2]
[344667382,1733715040559,-1120.57,9.995e-05,2]
[344667383,1733715040568,-1437.89,9.995e-05,2]
[344667384,1733715040577,-176.306491,9.995e-05,2]
[344667385,1733715040586,-1962.716786,9.995e-05,2]
[344667386,1733715040595,-719.71,9.995e-05,2]
[344667387,1733715040604,-6348.11,9.995e-05,2]
[344667388,1733715040613,-1327.4,9.995e-05,2]
[344667389,1733715040786,-6427.48,9.995e-05,2]
[344667390,1733715040823,-500.0,9.995e-05,2]
[344667391,1733715040832,-500.0,9.995e-05,2]
[344667392,1733715040842,-9509.48,9.995e-05,2]
[344667393,1733715040851,-659.67,9.995e-05,2]
[344667394,1733715040860,-520.3,9.995e-05,2]
[344667395,1733715040869,-5144.81,9.995e-05,2]
[344667396,1733715040878,-5144.81,9.995e-05,2]
[344667397,1733715040887,-4994.83,9.995e-05,2]
[344667398,1733715040896,-5144.81,9.995e-05,2]
[344667399,1733715040905,-1108.39726536,9.995e-05,3]
[344667400,1733715040914,-4176.55,9.995e-05,2]
[344667401,1733715040923,-500.0,9.995e-05,2]
[344667402,1733715040932,-500.0,9.995e-05,2]
[344667403,1733715040941,-377.75056241,9.995e-05,2]
[344667404,1733715040951,-614.44,9.995e-05,2]
[344667405,1733715040961,-614.44,9.995e-05,2]
[344667406,1733715040971,-614.44,9.995e-05,2]
[344667407,1733715040980,-766.52,9.995e-05,2]
[344667408,1733715040989,-813.93,9.995e-05,2]
[344667409,1733715040999,-3687.01,9.995e-05,2]
[344667410,1733715041008,-1437.3,9.995e-05,2]
[344667411,1733715041017,-1437.3,9.995e-05,2]
[344667412,1733715041026,-813.93,9.995e-05,2]
[344667413,1733715041035,-1437.3,9.995e-05,2]
[344667414,1733715041044,-813.93,9.995e-05,2]
[344667415,1733715041055,-3048.73,9.995e-05,2]
[344667416,1733715041065,-8798.37,9.995e-05,2]
[344667417,1733715041075,-8054.62,9.995e-05,2]
[344667418,1733715041084,-8054.62,9.995e-05,2]
[344667419,1733715041093,-3282.69,9.995e-05,2]
[344667420,1733715041102,-8054.62,9.995e-05,2]
[344667421,1733715041112,-3282.69,9.995e-05,2]
[344667422,1733715041121,-3282.69,9.995e-05,2]
[344667423,1733715041131,-11463.56,9.995e-05,2]
[344667424,1733715041140,-500.0,9.995e-05,2]
[344667425,1733715041149,-360.2792049,9.995e-05,2]
[344667426,1733715041159,-500.0,9.995e-05,2]
[344667427,1733715041168,-500.0,9.995e-05,2]
[344667428,1733715041176,-523.51,9.995e-05,2]
[344667429,1733715041186,-500.0,9.995e-05,2]
[344667430,1733715041195,-12938.5,9.995e-05,2]
[344667431,1733715041203,-513.29084025,9.995e-05,2]
[344667432,1733715041217,-12425.20915975,9.995e-05,2]
[344667433,1733715041229,-500.0,9.995e-05,2]
[344667434,1733715041238,-12938.5,9.995e-05,2]
[344667435,1733715041248,-500.0,9.995e-05,2]
[344667436,1733715041258,-500.0,9.995e-05,2]
[344667437,1733715041267,-6117.09,9.995e-05,2]
[344667438,1733715041277,-1066.06,9.995e-05,2]
[344667439,1733715041286,-1114.63,9.995e-05,2]
[344667440,1733715041297,-1066.06,9.995e-05,2]
[344667441,1733715041306,-1066.06,9.995e-05,2]
[344667442,1733715041317,-7634.54,9.995e-05,2]
[344667443,1733715041326,-7634.54,9.995e-05,2]
[344667444,1733715041336,-7634.54,9.995e-05,2]
[344667445,1733715041346,-6432.18,9.995e-05,2]
[344667446,1733715041356,-34071.56,9.995e-05,2]
[344667447,1733715041367,-2261.36,9.995e-05,2]
[344667448,1733715041376,-656.62,9.995e-05,2]
[344667449,1733715041386,-2261.36,9.995e-05,2]
[344667450,1733715041396,-656.62,9.995e-05,2]
[344667451,1733715041407,-2261.36,9.995e-05,2]
[344667452,1733715041418,-656.62,9.995e-05,2]
[344667453,1733715041430,-7245.55,9.995e-05,2]
[344667454,1733715041440,-500.0,9.995e-05,2]
[344667455,1733715041450,-500.0,9.995e-05,2]
[344667456,1733715041460,-500.0,9.995e-05,2]
[344667457,1733715041469,-1711.0,9.995e-05,2]
[344667458,1733715041478,-1711.0,9.995e-05,2]
[344667459,1733715041487,-1711.0,9.995e-05,2]
[344667460,1733715041497,-585.7,9.995e-05,2]
[344667461,1733715041506,-585.7,9.995e-05,2]
[344667462,1733715041515,-585.7,9.995e-05,2]
[344667463,1733715041525,-15621.98,9.995e-05,2]
[344667464,1733715041535,-500.0,9.995e-05,2]
[344667465,1733715041545,-9897.75,9.995e-05,2]
[344667466,1733715041554,-9897.75,9.995e-05,2]
[344667467,1733715041565,-9897.75,9.995e-05,2]
[344667468,1733715041573,-738.17,9.995e-05,2]
[344667469,1733715041583,-738.17,9.995e-05,2]
[344667470,1733715041592,-500.0,9.995e-05,2]
[344667471,1733715041602,-738.17,9.995e-05,2]
[344667472,1733715041613,-697.67,9.995e-05,2]
[344667473,1733715041622,-599.4,9.995e-05,2]
[344667474,1733715041633,-567.08,9.995e-05,2]
[344667475,1733715041643,-567.08,9.995e-05,2]
[344667476,1733715041653,-567.08,9.995e-05,2]
[344667477,1733715041663,-1110.41,9.995e-05,2]
[344667478,1733715041671,-1110.41,9.995e-05,2]
[344667479,1733715041680,-1110.41,9.995e-05,2]
[344667480,1733715041690,-1110.41,9.995e-05,2]
[344667481,1733715041699,-608.25,9.995e-05,2]
[344667482,1733715041709,-1213.4,9.995e-05,2]
[344667483,1733715041720,-1213.4,9.995e-05,2]
[344667484,1733715041730,-608.25,9.995e-05,2]
[344667485,1733715041741,-967.24,9.995e-05,2]
[344667486,1733715041751,-1213.4,9.995e-05,2]
[344667487,1733715041761,-608.25,9.995e-05,2]
[344667488,1733715041770,-967.24,9.995e-05,2]
[344667489,1733715041779,-1213.4,9.995e-05,2]
[344667490,1733715041789,-608.25,9.995e-05,2]
[344667491,1733715041798,-967.24,9.995e-05,2]
[344667492,1733715041808,-500.0,9.995e-05,2]
[344667493,1733715041818,-500.0,9.995e-05,2]
[344667494,1733715041827,-500.0,9.995e-05,2]
[344667495,1733715041837,-4296.19,9.995e-05,2]
[344667496,1733715041846,-4296.19,9.995e-05,2]
[344667497,1733715041855,-500.0,9.995e-05,2]
[344667498,1733715041865,-500.0,9.995e-05,2]
[344667499,1733715041874,-4296.19,9.995e-05,2]
[344667500,1733715041883,-7026.15,9.995e-05,2]
[344667501,1733715041892,-401.13481191,9.995e-05,2]
[344667502,1733715041901,-519.6,9.995e-05,2]
[344667503,1733715041910,-500.0,9.995e-05,2]
[344667504,1733715041921,-519.6,9.995e-05,2]
[344667505,1733715041931,-519.6,9.995e-05,2]
[344667506,1733715041941,-713.15,9.995e-05,2]
[344667507,1733715041951,-519.6,9.995e-05,2]
[344667508,1733715041961,-713.15,9.995e-05,2]
[344667509,1733715041970,-713.15,9.995e-05,2]
[344667510,1733715041979,-713.15,9.995e-05,2]
[344667511,1733715041989,-1283.1,9.995e-05,2]
[344667512,1733715041999,-1283.1,9.995e-05,2]
[344667513,1733715042009,-500.0,9.995e-05,2]
[344667514,1733715042018,-500.0,9.995e-05,2]
[344667515,1733715042028,-1283.1,9.995e-05,2]
[344667516,1733715042037,-500.0,9.995e-05,2]
[344667517,1733715042046,-1283.1,9.995e-05,2]
[344667518,1733715042056,-500.0,9.995e-05,2]
[344667519,1733715042067,-1283.1,9.995e-05,2]
[344667520,1733715042076,-496.94363948,9.995e-05,2]
[344667521,1733715042085,-1283.1,9.995e-05,2]
[344667522,1733715042096,-1283.1,9.995e-05,2]
[344667523,1733715042105,-7399.08,9.995e-05,2]
[344667524,1733715042114,-1283.1,9.995e-05,2]
[344667525,1733715042124,-1283.1,9.995e-05,2]
[344667526,1733715042133,-1557.28,9.995e-05,2]
[344667527,1733715042142,-1557.28,9.995e-05,2]
[344667528,1733715042153,-1000.0,9.996e-05,2]
[344667529,1733715042162,-1000.0,9.996e-05,2]
[344667530,1733715042171,-1000.0,9.996e-05,2]
[344667531,1733715042180,-1000.0,9.996e-05,2]
[344667532,1733715042189,-1000.0,9.996e-05,2]
[344667533,1733715042198,-1000.0,9.996e-05,2]
[344667534,1733715042208,-1000.0,9.996e-05,2]
[344667535,1733715042219,-500.0,9.996e-05,2]
[344667536,1733715042230,-4284.92,9.996e-05,2]
[344667537,1733715042239,-500.0,9.996e-05,2]
[344667538,1733715042248,-500.0,9.996e-05,2]
[344667539,1733715042258,-2151.88,9.996e-05,2]
[344667540,1733715042267,-773.56,9.996e-05,2]
[344667541,1733715042276,-500.0,9.996e-05,2]
[344667542,1733715042285,-500.0,9.996e-05,2]
[344667543,1733715042296,-503.55855234,9.996e-05,2]
[344667544,1733715042305,-902.9,9.996e-05,2]
[344667545,1733715042316,-500.0,9.996e-05,2]
[344667546,1733715042326,-910.19,9.996e-05,2]
[344667547,1733715042337,-768.42,9.996e-05,2]
[344667548,1733715042346,-500.0,9.996e-05,2]
[344667549,1733715042356,-500.0,9.996e-05,2]
[344667550,1733715042367,-500.0,9.996e-05,2]
[344667551,1733715042376,-500.0,9.996e-05,2]
[344667552,1733715042386,-500.0,9.996e-05,2]
[344667553,1733715042396,-500.0,9.996e-05,2]
[344667554,1733715042407,-500.0,9.996e-05,2]
[344667555,1733715042419,-1164.9,9.996e-05,2]
[344667556,1733715042428,-500.0,9.996e-05,2]
[344667557,1733715042437,-500.0,9.996e-05,2]
[344667558,1733715042446,-500.0,9.996e-05,2]
[344667559,1733715042455,-2119.57,9.996e-05,2]
[344667560,1733715042464,-1412.47,9.996e-05,2]
[344667561,1733715042473,-500.0,9.996e-05,2]
[344667562,1733715042482,-500.0,9.996e-05,2]
[344667563,1733715042494,-1988.41,9.996e-05,2]
[344667564,1733715042503,-656.46,9.996e-05,2]
[344667565,1733715042513,-500.0,9.996e-05,2]
[344667566,1733715042523,-500.0,9.996e-05,2]
[344667567,1733715042534,-1121.4,9.996e-05,2]
[344667568,1733715042543,-500.0,9.996e-05,2]
[344667569,1733715042552,-500.0,9.996e-05,2]
[344667570,1733715042564,-1507.51,9.996e-05,2]
[344667571,1733715042573,-500.0,9.996e-05,2]
[344667572,1733715042583,-1886.75,9.996e-05,2]
[344667573,1733715042592,-500.0,9.996e-05,2]
[344667574,1733715042600,-2279.99,9.996e-05,2]
[344667575,1733715042610,-500.0,9.996e-05,2]
[344667576,1733715042619,-500.0,9.996e-05,2]
[344667577,1733715042628,-500.0,9.996e-05,2]
[344667578,1733715042638,-500.0,9.996e-05,2]
[344667579,1733715042647,-500.0,9.996e-05,2]
[344667580,1733715042657,-789.04,9.996e-05,2]
[344667581,1733715042666,-500.0,9.996e-05,2]
[344667582,1733715042675,-500.705904,9.996e-05,2]
[344667583,1733715042684,-608.18,9.996e-05,2]
[344667584,1733715042693,-500.0,9.996e-05,2]
[344667585,1733715042702,-500.0,9.996e-05,2]
[344667586,1733715042711,-500.0,9.996e-05,2]
[344667587,1733715042721,-500.77388149,9.996e-05,2]
[344667588,1733715042730,-696.18,9.996e-05,2]
[344667589,1733715042739,-500.0,9.996e-05,2]
[344667590,1733715042748,-500.0,9.996e-05,2]
[344667591,1733715042757,-500.0,9.996e-05,2]
[344667592,1733715042766,-500.0,9.996e-05,2]
[344667593,1733715042775,-500.0,9.996e-05,2]
[344667594,1733715042784,-500.51450216,9.996e-05,2]
[344667595,1733715042794,-500.0,9.996e-05,2]
[344667596,1733715042803,-759.35,9.996e-05,2]
[344667598,1733715042812,-661.91,9.996e-05,2]
[344667599,1733715042821,-500.0,9.996e-05,2]
[344667600,1733715042830,-500.20645495,9.996e-05,2]
[344667601,1733715042839,-500.0,9.996e-05,2]
[344667602,1733715042848,-1016.39,9.996e-05,2]
[344667603,1733715042858,-500.0,9.996e-05,2]
[344667604,1733715042867,-500.77575499,9.996e-05,2]
[344667605,1733715042876,-500.0,9.996e-05,2]
[344667606,1733715042885,-500.0,9.996e-05,2]
[344667607,1733715042895,-570.44,9.996e-05,2]
[344667608,1733715042905,-500.64985649,9.996e-05,2]
[344667609,1733715042914,-500.94009226,9.996e-05,2]
[344667610,1733715042924,-501.05151089,9.996e-05,2]
[344667611,1733715042934,-500.0,9.996e-05,2]
[344667612,1733715042944,-500.87938766,9.996e-05,2]
[344667613,1733715042954,-500.0,9.996e-05,2]
[344667614,1733715042964,-500.0,9.996e-05,2]
[344667615,1733715042973,-500.20444698,9.996e-05,2]
[344667616,1733715042982,-500.0,9.996e-05,2]
[344667617,1733715042992,-500.0,9.996e-05,2]
[344667618,1733715043001,-500.0,9.996e-05,2]
[344667619,1733715043011,-1055.76,9.996e-05,2]
[344667620,1733715043020,-535.18,9.996e-05,2]
[344667621,1733715043030,-500.0,9.996e-05,2]
[344667622,1733715043039,-501.31059418,9.996e-05,2]
[344667623,1733715043048,-500.0,9.996e-05,2]
[344667624,1733715043057,-527.71264614,9.996e-05,2]
[344667625,1733715043068,-500.0,9.996e-05,2]
[344667626,1733715043078,-500.0,9.996e-05,2]
[344667627,1733715043087,-500.0,9.996e-05,2]
[344667628,1733715043097,-513.26,9.996e-05,2]
[344667629,1733715043106,-500.50091589,9.996e-05,2]
[344667630,1733715043116,-500.0,9.996e-05,2]
[344667631,1733715043125,-1837.28,9.996e-05,2]
[344667632,1733715043312,-500.0,9.996e-05,2]
[344667633,1733715043322,-500.0,9.996e-05,2]
[344667634,1733715043331,-500.62368229,9.996e-05,2]
[344667635,1733715043342,-705.93,9.996e-05,2]
[344667636,1733715043352,-500.0,9.996e-05,2]
[344667637,1733715043362,-548.82,9.996e-05,2]
[344667638,1733715043371,-500.0,9.996e-05,2]
[344667639,1733715043381,-500.4114598,9.996e-05,2]
[344667640,1733715043391,-523.9,9.996e-05,2]
[344667641,1733715043400,-500.0,9.996e-05,2]
[344667642,1733715043409,-500.0,9.996e-05,2]
[344667643,1733715043419,-500.0,9.996e-05,2]
[344667644,1733715043428,-308.73177454,9.996e-05,2]
[344667645,1733715043439,-500.0,9.996e-05,2]
[344667646,1733715043449,-500.0,9.996e-05,2]
[344667647,1733715043459,-500.0,9.996e-05,2]
[344667648,1733715043468,-500.0,9.996e-05,2]
[344667649,1733715043477,-384.94011084,9.996e-05,2]